bitfinex-derivatives/quotes_BTCF0:USTF0_20250218
["timestamp","ask_amount","ask_price","bid_price","bid_amount"]
[1739864038898,0.00215682,95625.0,95624.0,0.21952517]
[1739864039292,0.00415682,95625.0,95624.0,0.21952517]
[1739864040392,0.16407578,95640.0,95636.0,0.2091388]
[1739864040598,0.09632413,95640.0,95639.0,0.3608]
[1739864041595,0.09832413,95640.0,95639.0,0.3608]
[1739864042398,0.10032413,95640.0,95639.0,0.3628]
[1739864044495,0.004,95640.0,95639.0,0.3628]
[1739864046103,0.004,95640.0,95639.0,0.37353841]
[1739864048005,0.004,95640.0,95639.0,0.3628]
[1739864060720,0.00015691,95649.0,95639.0,0.3628]
[1739864060919,0.00015691,95649.0,95648.0,0.3608]
[1739864062120,0.00015691,95649.0,95648.0,0.3618]
[1739864063712,0.00015691,95649.0,95648.0,0.37354926]
[1739864065420,0.00015691,95649.0,95648.0,0.3628]
[1739864066414,0.00015691,95649.0,95648.0,0.37333426]
[1739864067328,0.00015691,95649.0,95648.0,0.58244846]
[1739864068217,0.00156854,95660.0,95659.0,0.2090902]
[1739864068416,0.00156854,95660.0,95659.0,0.5698902]
[1739864069409,0.00156854,95660.0,95659.0,0.5708902]
[1739864069615,0.00015662,95669.0,95659.0,0.3618]
[1739864069815,0.00015662,95669.0,95667.0,0.3608]
[1739864071625,0.00015662,95669.0,95667.0,0.4033]
[1739864072025,0.00015662,95669.0,95667.0,0.4043]
[1739864072326,0.00015662,95669.0,95667.0,0.4053]
[1739864073020,0.00015662,95669.0,95667.0,0.41563082]
[1739864073225,0.00015662,95669.0,95667.0,0.4053]
[1739864073421,0.00015662,95669.0,95667.0,0.3628]
[1739864073919,0.00015662,95669.0,95667.0,0.3618]
[1739864074225,0.00015662,95669.0,95667.0,0.3628]
[1739864087535,0.00015662,95669.0,95667.0,0.3608]
[1739864090346,0.00015662,95669.0,95666.0,0.209074]
[1739864090532,0.00015662,95669.0,95668.0,0.3608]
[1739864092737,0.01073673,95675.0,95668.0,0.3608]
[1739864092738,0.0412,95678.0,95669.0,0.2090683]
[1739864092932,0.0412,95678.0,95670.0,0.2090645]
[1739864093131,0.0412,95678.0,95670.0,0.2913645]
[1739864094040,0.06775165,95680.0,95670.0,0.2913645]
[1739864094236,0.06775165,95680.0,95670.0,0.2923645]
[1739864095339,0.07814924,95680.0,95670.0,0.2923645]
[1739864096941,0.07814924,95680.0,95672.0,0.209061]
[1739864097840,0.06775165,95682.0,95679.0,0.3608]
[1739864098140,0.06775165,95690.0,95683.0,0.2090365]
[1739864098438,0.06775165,95690.0,95689.0,0.3608]
[1739864098845,0.209017,95693.0,95689.0,0.3608]
[1739864099145,0.209017,95693.0,95690.0,0.0887]
[1739864099840,0.32155575,95699.0,95690.0,0.0887]
[1739864100038,0.2090057,95698.0,95690.0,0.0887]
[1739864100234,0.12283752,95699.0,95690.0,0.0887]
[1739864100428,0.09626082,95698.0,95690.0,0.0887]
[1739864100845,0.09626082,95698.0,95691.0,0.0428]
[1739864101842,0.09626082,95698.0,95697.0,0.3608]
[1739864104740,0.21978226,95699.0,95697.0,0.3608]
[1739864108941,0.01077776,95699.0,95691.0,0.0428]
[1739864109152,0.209048,95679.0,95670.0,0.3608]
[1739864109351,0.1261,95678.0,95672.0,0.0815]
[1739864109939,0.10304895,95687.0,95672.0,0.0815]
[1739864110148,0.31207995,95687.0,95679.0,0.3608]
[1739864111246,0.2164,95696.0,95679.0,0.3608]
[1739864111641,0.10304895,95690.0,95679.0,0.3608]
[1739864111844,0.1569772,95696.0,95679.0,0.3608]
[1739864112363,0.1569772,95696.0,95683.0,0.2090361]
[1739864112549,0.1569772,95696.0,95684.0,0.0864]
[1739864113246,0.10304895,95694.0,95684.0,0.0864]
[1739864113459,0.2090201,95692.0,95684.0,0.0864]
[1739864114056,0.10304895,95694.0,95684.0,0.0874]
[1739864114248,0.0861,95691.0,95684.0,0.0874]
[1739864114443,0.0425,95690.0,95684.0,0.0874]
[1739864114653,0.0425,95690.0,95684.0,0.0864]
[1739864114857,0.2090276,95688.0,95684.0,0.0864]
[1739864119358,0.0425,95690.0,95684.0,0.0424]
[1739864119549,0.0425,95690.0,95679.0,0.3608]
[1739864119756,0.2090397,95683.0,95679.0,0.0432]
[1739864119944,0.2090412,95682.0,95679.0,0.0432]
[1739864123057,0.0425,95690.0,95679.0,0.0432]
[1739864123746,0.0425,95690.0,95686.0,0.3608]
[1739864123948,0.2090268,95689.0,95687.0,0.0429]
[1739864124151,0.0861,95691.0,95687.0,0.0429]
[1739864124655,0.2090254,95689.0,95687.0,0.0429]
[1739864142869,0.0445,95691.0,95688.0,0.0419]
[1739864143058,0.13976668,95694.0,95688.0,0.0419]
[1739864143059,0.09626668,95694.0,95688.0,0.0419]
[1739864143562,0.09626668,95694.0,95689.0,0.0427]
[1739864144764,0.09626668,95694.0,95689.0,0.05320958]
[1739864145154,0.09626668,95694.0,95690.0,0.2090228]
[1739864145568,0.09626668,95696.0,95690.0,0.2090228]
[1739864149368,0.20303358,95700.0,95690.0,0.2090228]
[1739864149562,0.20303358,95700.0,95697.0,0.3608]
[1739864149758,0.1,95700.0,95698.0,0.0444]
[1739864150168,0.1,95700.0,95699.0,0.0824]
[1739864152071,0.1,95700.0,95699.0,0.09393589]
[1739864152270,0.1,95700.0,95699.0,0.0834]
[1739864153374,0.1,95700.0,95699.0,0.09368647]
[1739864154771,0.1,95700.0,95699.0,0.30268967]
[1739864154972,0.00513106,95712.0,95706.0,0.2089862]
[1739864155176,0.00513106,95712.0,95707.0,0.0436]
[1739864155473,0.00064,95718.0,95709.0,0.2089799]
[1739864155667,0.00518043,95720.0,95716.0,0.5697652]
[1739864155870,0.01040199,95728.0,95717.0,0.0436]
[1739864156064,0.1569772,95736.0,95722.0,0.2089511]
[1739864156259,0.1569772,95736.0,95723.0,0.0881]
[1739864156463,0.1569772,95736.0,95725.0,0.3608]
[1739864156668,0.1569772,95736.0,95734.0,0.3608]
[1739864156875,0.10303358,95750.0,95734.0,0.3608]
[1739864157065,0.2088974,95748.0,95735.0,0.0874]
[1739864157384,0.3608,95751.0,95735.0,0.0874]
[1739864157566,0.10303358,95750.0,95744.0,0.3608]
[1739864157766,0.10303358,95750.0,95745.0,0.0436]
[1739864158168,0.10303358,95750.0,95745.0,0.2525014]
[1739864158975,0.1133114,95750.0,95745.0,0.2535014]
[1739864159375,0.10303358,95750.0,95745.0,0.2535014]
[1739864159677,0.10303358,95750.0,95745.0,0.2545014]
[1739864159886,0.10303358,95750.0,95748.0,0.2088945]
[1739864160073,0.0413,95757.0,95749.0,0.0429]
[1739864160275,0.0413,95757.0,95752.0,0.3608]
[1739864160276,0.05188614,95757.0,95752.0,0.3608]
[1739864160877,0.05188614,95757.0,95749.0,0.0429]
[1739864161280,0.2088841,95754.0,95749.0,0.001]
[1739864161477,0.2088867,95753.0,95749.0,0.001]
[1739864162170,0.2088867,95753.0,95749.0,0.002]
[1739864162667,0.2088909,95751.0,95749.0,0.001]
[1739864162867,0.2088909,95751.0,95749.0,0.002]
[1739864165081,0.05188614,95757.0,95749.0,0.002]
[1739864165583,0.05188614,95757.0,95750.0,0.0873]
[1739864166877,0.2088888,95752.0,95749.0,0.002]
[1739864167077,0.2088911,95751.0,95750.0,0.001]
[1739864167685,0.2089182,95738.0,95727.0,0.00156694]
[1739864167880,0.2089182,95738.0,95728.0,0.0407]
[1739864169192,0.2089182,95738.0,95737.0,0.00115673]
[1739864169890,0.2089182,95738.0,95737.0,0.00015673]
[1739864170089,0.0839,95739.0,95737.0,0.00015673]
[1739864170387,0.5697149,95740.0,95737.0,0.00115673]
[1739864170584,0.2089168,95739.0,95737.0,0.00115673]
[1739864171685,0.36140001,95740.0,95737.0,0.00115673]
[1739864171882,0.16415233,95740.0,95738.0,0.0422]
[1739864172678,0.086,95746.0,95739.0,0.3608]
[1739864173388,0.31193338,95747.0,95739.0,0.3608]
[1739864173389,0.10303358,95747.0,95739.0,0.3608]
[1739864173692,0.10303358,95747.0,95740.0,0.0427]
[1739864174287,0.10303358,95747.0,95741.0,0.0411]
[1739864175391,0.2089091,95743.0,95741.0,0.0411]
[1739864175593,0.2089132,95741.0,95739.0,0.3628]
[1739864175788,0.2089132,95741.0,95739.0,0.3618]
[1739864176195,0.2089132,95741.0,95739.0,0.3608]
[1739864176794,0.2089132,95741.0,95740.0,0.0437]
[1739864178595,0.2089132,95741.0,95740.0,0.0447]
[1739864179186,0.2089132,95741.0,95740.0,0.0457]
[1739864179795,0.10303358,95747.0,95740.0,0.0457]
[1739864180095,0.208904,95745.0,95740.0,0.0457]
[1739864180296,0.2089066,95744.0,95740.0,0.0457]
[1739864180496,0.2089081,95743.0,95740.0,0.0457]
[1739864182104,0.2089081,95743.0,95740.0,0.0447]
[1739864182505,0.2089081,95743.0,95742.0,0.3608]
[1739864182797,0.10303358,95747.0,95742.0,0.3608]
[1739864185103,0.36136001,95756.0,95745.0,0.2089017]
[1739864185300,0.3608,95756.0,95746.0,0.0833]
[1739864186395,0.3608,95756.0,95748.0,0.2088946]
[1739864186900,0.3608,95756.0,95746.0,0.0833]
[1739864187201,0.10303358,95760.0,95751.0,0.3608]
[1739864187412,0.10303358,95760.0,95752.0,0.0403]
[1739864188798,0.10303358,95760.0,95752.0,0.05062364]
[1739864189599,0.10303358,95760.0,95752.0,0.0403]
[1739864190900,0.15837371,95762.0,95752.0,0.0403]
[1739864191204,0.20606716,95762.0,95752.0,0.0403]
[1739864191799,0.10303358,95762.0,95752.0,0.0403]
[1739864192108,0.2088695,95761.0,95752.0,0.0403]
[1739864192408,0.2908695,95761.0,95752.0,0.0403]
[1739864192894,0.30163502,95761.0,95752.0,0.0403]
[1739864193303,0.21963502,95761.0,95752.0,0.0403]
[1739864194199,0.01076552,95761.0,95752.0,0.0403]
[1739864194500,0.10303358,95762.0,95752.0,0.0403]
[1739864194704,0.2088695,95761.0,95752.0,0.0403]
[1739864196102,0.21934502,95761.0,95752.0,0.0403]
[1739864196604,0.10303358,95762.0,95752.0,0.0403]
[1739864201506,0.10303358,95762.0,95754.0,0.2088827]
[1739864203603,0.10303358,95762.0,95759.0,0.3608]
[1739864203808,0.00536087,95768.0,95760.0,0.2834702]
[1739864204304,0.00536087,95768.0,95760.0,0.2834691]
[1739864204509,0.00536087,95768.0,95760.0,0.0746]
[1739864204705,0.00536087,95768.0,95761.0,0.208868]
[1739864204901,0.00536087,95768.0,95760.0,0.0746]
[1739864206205,0.09618802,95783.0,95767.0,0.3608]
[1739864206415,0.09618802,95783.0,95772.0,0.208843]
[1739864206416,0.10303358,95780.0,95772.0,0.208843]
[1739864206714,0.10303358,95780.0,95779.0,0.3608]
[1739864206907,0.09618802,95783.0,95779.0,0.3608]
[1739864207107,0.09618802,95783.0,95780.0,0.0358]
[1739864207312,0.09618802,95783.0,95782.0,0.3608]
[1739864207612,0.09618802,95783.0,95782.0,0.37146045]
[1739864208811,0.09618802,95783.0,95782.0,0.37246045]
[1739864209006,0.09618802,95783.0,95782.0,0.37346045]
[1739864209409,0.09618802,95791.0,95782.0,0.37346045]
[1739864209600,0.09618802,95791.0,95790.0,0.3608]
[1739864211211,0.09618802,95791.0,95790.0,0.3618]
[1739864212103,0.09618802,95791.0,95790.0,0.3628]
[1739864212519,0.20303358,95800.0,95790.0,0.3628]
[1739864212705,0.20303358,95800.0,95791.0,0.1122]
[1739864216114,0.20303358,95800.0,95791.0,0.0746]
[1739864217719,0.41181728,95800.0,95791.0,0.0746]
[1739864219726,0.20303358,95800.0,95791.0,0.0746]
[1739864222519,0.2088026,95791.0,95790.0,0.36144]
[1739864222718,0.2088026,95791.0,95790.0,0.3608]
[1739864222913,0.2088135,95786.0,95785.0,0.00015665]
[1739864223113,0.5696135,95786.0,95785.0,0.00015665]
[1739864223621,0.5696135,95786.0,95767.0,0.0693]
[1739864223622,0.3608,95786.0,95767.0,0.0693]
[1739864223821,0.2088496,95770.0,95767.0,0.0374]
[1739864224115,0.3608,95776.0,95767.0,0.0374]
[1739864224116,0.3081523,95769.0,95767.0,0.0374]
[1739864224320,0.2088593,95765.0,95756.0,0.4225]
[1739864224522,0.2088593,95765.0,95756.0,0.42314]
[1739864225015,0.21954989,95765.0,95759.0,0.01027784]
[1739864225721,0.21954989,95765.0,95756.0,0.42314]
[1739864226716,0.21954989,95765.0,95762.0,0.00256622]
[1739864226717,0.2088593,95765.0,95762.0,0.00256622]
[1739864227323,0.2088593,95765.0,95762.0,0.00156622]
[1739864227527,0.0993,95769.0,95762.0,0.00156622]
[1739864227716,0.0052121,95765.0,95762.0,0.00156622]
[1739864227915,0.0052121,95765.0,95764.0,0.3608]
[1739864232229,0.0052121,95765.0,95762.0,0.00156622]
[1739864232230,0.2088614,95764.0,95762.0,0.00156622]
[1739864232427,0.0318,95763.0,95762.0,0.00156622]
[1739864233419,0.03184422,95763.0,95762.0,0.00156622]
[1739864233818,0.04525168,95763.0,95762.0,0.00156622]
[1739864234315,0.04525168,95763.0,95762.0,0.00256622]
[1739864237024,0.03184422,95763.0,95762.0,0.00256622]
[1739864237331,4.422e-05,95763.0,95762.0,0.00256622]
[1739864239526,4.422e-05,95763.0,95762.0,0.00156622]
[1739864240427,4.422e-05,95763.0,95762.0,0.00256622]
[1739864241428,4.422e-05,95763.0,95762.0,0.01586986]
[1739864242726,4.422e-05,95763.0,95762.0,0.01786986]
[1739864243128,4.422e-05,95763.0,95762.0,0.01686986]
[1739864243318,0.10303358,95777.0,95762.0,0.01686986]
[1739864243517,0.10303358,95777.0,95772.0,0.3608]
[1739864243730,0.2087925,95796.0,95772.0,0.7216]
[1739864243921,0.10303358,95790.0,95788.0,0.3608]
[1739864244120,0.2087958,95795.0,95788.0,0.3608]
[1739864244433,0.10303358,95798.0,95789.0,0.0332]
[1739864244733,0.11596957,95798.0,95789.0,0.0332]
[1739864244924,0.32475807,95798.0,95789.0,0.0332]
[1739864245524,0.31182208,95798.0,95796.0,0.3608]
[1739864246937,0.31182208,95798.0,95797.0,0.0327]
[1739864247638,0.2087885,95798.0,95797.0,0.0327]
[1739864249338,0.2087885,95798.0,95797.0,0.001]
[1739864250034,0.208785,95799.0,95797.0,0.001]
[1739864250544,0.0322,95798.0,95797.0,0.001]
[1739864250737,0.0322,95798.0,95797.0,0.002]
[1739864252138,0.0322,95798.0,95797.0,0.001]
[1739864253039,0.0322,95798.0,95797.0,0.002]
[1739864255540,0.0322,95798.0,95797.0,0.001]
[1739864257140,0.2409872,95798.0,95797.0,0.001]
[1739864257839,0.2087948,95795.0,95790.0,0.0312]
[1739864258035,0.03,95794.0,95790.0,0.0312]
[1739864259038,0.2088025,95791.0,95790.0,0.0312]
[1739864263037,0.3608,95792.0,95785.0,0.0333]
[1739864263334,0.2088122,95787.0,95786.0,0.0319]
[1739864265544,0.2088122,95787.0,95786.0,0.0329]
[1739864268742,0.2088122,95787.0,95786.0,0.0319]
[1739864269747,0.2088122,95787.0,95786.0,0.0329]
[1739864271543,0.2088122,95787.0,95786.0,0.0319]
[1739864272749,0.2088122,95787.0,95786.0,0.0329]
[1739864275454,0.3608,95792.0,95765.0,0.01496364]
[1739864275455,0.0522017,95789.0,95765.0,0.00156632]
[1739864275751,0.2088493,95770.0,95767.0,0.0654]
[1739864278752,0.22172675,95770.0,95767.0,0.0654]
[1739864279462,0.2088518,95769.0,95767.0,0.0654]
[1739864280658,0.00534534,95768.0,95767.0,0.0654]
[1739864281557,0.00534534,95768.0,95767.0,0.0324]
[1739864281864,0.00534534,95768.0,95759.0,0.00015665]
[1739864282161,0.5696701,95760.0,95759.0,0.00015665]
[1739864283459,0.3608,95760.0,95759.0,0.00015665]
[1739864286364,0.2088875,95752.0,95751.0,0.0307]
[1739864286567,0.5696875,95752.0,95751.0,0.0307]
[1739864293059,0.2089312,95732.0,95718.0,0.3608]
[1739864293261,0.2089312,95732.0,95731.0,0.39566684]
[1739864293570,0.22154924,95732.0,95731.0,0.03486684]
[1739864294159,0.22154924,95732.0,95731.0,0.03986684]
[1739864294363,0.22154924,95732.0,95731.0,0.10116684]
[1739864294860,0.22154924,95732.0,95722.0,0.00015665]
[1739864294861,0.2079449,95726.0,95722.0,0.00015665]
[1739864295066,0.2089476,95725.0,95722.0,0.00015665]
[1739864295572,0.2089508,95723.0,95722.0,0.00015665]
[1739864295770,0.3608,95723.0,95707.0,0.3608]
[1739864296073,0.2049671,95716.0,95708.0,0.0317]
[1739864296968,0.2009671,95716.0,95708.0,0.0317]
[1739864297365,0.21375146,95716.0,95708.0,0.04457886]
[1739864297570,0.20975146,95716.0,95708.0,0.04457886]
[1739864297874,0.01278436,95716.0,95708.0,0.04457886]
[1739864298067,0.10303358,95717.0,95709.0,0.0614]
[1739864299566,0.00513636,95710.0,95709.0,0.0614]
[1739864300275,0.24103399,95719.0,95709.0,0.0614]
[1739864300475,0.24103399,95719.0,95709.0,0.0624]
[1739864301181,0.24103399,95719.0,95709.0,0.0634]
[1739864301880,0.25377093,95719.0,95709.0,0.0634]
[1739864303065,0.00527091,95710.0,95709.0,0.0634]
[1739864304167,0.00527091,95710.0,95709.0,0.0624]
[1739864304371,0.00527091,95710.0,95709.0,0.0634]
[1739864305770,0.00527091,95710.0,95709.0,0.4242]
[1739864312880,0.00527091,95710.0,95709.0,0.0634]
[1739864313082,0.00527091,95710.0,95709.0,0.002]
[1739864313278,0.21425011,95710.0,95709.0,0.002]
[1739864318085,0.00527091,95710.0,95709.0,0.002]
[1739864329581,0.00527091,95710.0,95709.0,0.3628]
[1739864334697,0.00527091,95710.0,95709.0,0.002]
[1739864334698,0.03797091,95710.0,95709.0,0.002]
[1739864335090,0.00527091,95710.0,95709.0,0.002]
[1739864343902,0.36607091,95710.0,95709.0,0.002]
[1739864344802,0.36907091,95710.0,95709.0,0.001]
[1739864345802,0.37207091,95710.0,95703.0,0.0329]
[1739864346008,0.01127091,95710.0,95703.0,0.0329]
[1739864347216,0.00827091,95710.0,95703.0,0.0329]
[1739864347518,0.00927091,95710.0,95703.0,0.0329]
[1739864348307,0.00627091,95710.0,95703.0,0.0329]
[1739864348510,0.00727091,95710.0,95703.0,0.0329]
[1739864348910,0.0302,95709.0,95702.0,0.00015665]
[1739864349212,0.3608,95703.0,95702.0,0.00015665]
[1739864349611,0.4236,95703.0,95702.0,0.00015665]
[1739864350004,0.3912,95703.0,95702.0,0.00015665]
[1739864350200,0.0304,95703.0,95702.0,0.00015665]
[1739864351806,0.0314,95703.0,95702.0,0.00015665]
[1739864352719,0.0414,95703.0,95702.0,0.00115665]
[1739864356417,0.3608,95704.0,95702.0,0.00115665]
[1739864356418,0.23201267,95704.0,95702.0,0.00115665]
[1739864357020,0.23201267,95704.0,95703.0,0.0661]
[1739864358621,0.23801267,95704.0,95703.0,0.0661]
[1739864358822,0.24201267,95704.0,95703.0,0.0661]
[1739864359121,0.23601267,95704.0,95703.0,0.0661]
[1739864359320,0.24201267,95704.0,95703.0,0.0661]
[1739864363023,0.01,95704.0,95703.0,0.0661]
[1739864365610,0.01,95704.0,95703.0,0.0671]
[1739864368221,0.01,95704.0,95703.0,0.0978]
[1739864371226,0.01,95704.0,95703.0,0.4586]
[1739864371630,0.00527091,95710.0,95703.0,0.4586]
[1739864371829,0.00527091,95710.0,95703.0,0.6675923]
[1739864372126,0.00527091,95710.0,95703.0,0.6665923]
[1739864372332,0.005,95704.0,95703.0,0.6665923]
[1739864372527,0.00527091,95710.0,95703.0,0.4576]
[1739864374036,0.00527091,95710.0,95703.0,0.4586]
[1739864374734,0.00527091,95710.0,95703.0,0.4576]
[1739864374935,0.00527091,95710.0,95703.0,0.4586]
[1739864375435,0.00527091,95710.0,95703.0,0.4576]
[1739864376034,0.00527091,95710.0,95703.0,0.0968]
[1739864386525,0.00527091,95710.0,95708.0,0.3608]
[1739864387330,0.00527091,95710.0,95708.0,0.37297657]
[1739864387943,0.00527091,95710.0,95708.0,0.3608]
[1739864394538,0.00527091,95710.0,95707.0,0.3608]
[1739864395142,0.21425141,95710.0,95707.0,0.3608]
[1739864395340,0.0304,95709.0,95707.0,0.3608]
[1739864395542,0.0304,95709.0,95703.0,0.0968]
[1739864396345,0.0316,95708.0,95703.0,0.0968]
[1739864398541,0.0304,95709.0,95705.0,0.3608]
[1739864400544,0.00527091,95710.0,95705.0,0.3608]
[1739864404645,0.2249233,95715.0,95705.0,0.3608]
[1739864405646,0.00531286,95706.0,95705.0,0.3608]
[1739864422055,0.2089408,95728.0,95705.0,0.5697894]
[1739864422256,0.06760373,95715.0,95714.0,0.3608]
[1739864422462,0.06760373,95715.0,95705.0,0.3608]
[1739864422463,0.30521416,95718.0,95705.0,0.3608]
[1739864422665,0.06760373,95715.0,95705.0,0.3608]
[1739864423064,0.2089774,95711.0,95705.0,0.3608]
[1739864425274,0.00534493,95706.0,95705.0,0.3608]
[1739864425680,0.06684493,95706.0,95705.0,0.3608]
[1739864435685,0.06684493,95706.0,95702.0,0.00015665]
[1739864435885,0.2090076,95697.0,95696.0,0.0612]
[1739864437487,0.22111648,95697.0,95696.0,0.0612]
[1739864437881,0.2090258,95689.0,95687.0,0.00015673]
[1739864438081,0.2090258,95689.0,95673.0,0.3608]
[1739864438082,0.3608,95694.0,95673.0,0.3608]
[1739864438383,0.2090545,95676.0,95674.0,0.0632]
[1739864439686,0.0616,95682.0,95674.0,0.0632]
[1739864439884,0.10892,95681.0,95674.0,0.0632]
[1739864440285,0.2090545,95676.0,95674.0,0.0632]
[1739864440479,0.2060545,95676.0,95674.0,0.0632]
[1739864442789,0.21818113,95676.0,95674.0,0.0632]
[1739864443286,0.01212663,95676.0,95674.0,0.0632]
[1739864443482,0.2090442,95681.0,95674.0,0.0632]
[1739864443683,0.0311,95682.0,95674.0,0.0632]
[1739864444288,0.04312895,95682.0,95674.0,0.0632]
[1739864444789,0.002,95681.0,95674.0,0.0632]
[1739864444992,0.10892,95680.0,95674.0,0.0632]
[1739864445785,0.2090526,95677.0,95674.0,0.0632]
[1739864445992,0.2090543,95676.0,95674.0,0.0632]
[1739864459192,0.04312895,95682.0,95674.0,0.0632]
[1739864459393,0.01202895,95682.0,95677.0,0.3608]
[1739864459598,0.00015673,95685.0,95678.0,0.0327]
[1739864466896,0.00015673,95685.0,95680.0,0.2090434]
[1739864467300,0.00015673,95685.0,95678.0,0.39414]
[1739864467506,0.00015673,95685.0,95678.0,0.3935]
[1739864470096,0.2090433,95681.0,95677.0,0.3608]
[1739864470404,0.2090433,95681.0,95674.0,0.0632]
[1739864470595,0.0322,95680.0,95674.0,0.0632]
[1739864471195,0.209049,95679.0,95668.0,0.3608]
[1739864471395,0.209049,95679.0,95669.0,0.0658]
[1739864472107,0.0322,95680.0,95669.0,0.0658]
[1739864472302,0.10884,95679.0,95669.0,0.0658]
[1739864473202,0.10884,95679.0,95669.0,0.0668]
[1739864474596,0.10884,95679.0,95669.0,0.0678]
[1739864475913,0.10884,95679.0,95669.0,0.0668]
[1739864477412,0.00015673,95685.0,95678.0,0.3608]
[1739864477615,0.00015673,95685.0,95679.0,0.0937]
[1739864482620,0.00015673,95685.0,95679.0,0.0621]
[1739864483117,0.3608,95682.0,95669.0,0.0327]
[1739864483307,0.10306934,95680.0,95669.0,0.0327]
[1739864484710,0.2090536,95676.0,95669.0,0.0327]
[1739864485309,0.2090536,95676.0,95669.0,0.0337]
[1739864485919,0.2090536,95676.0,95669.0,0.0327]
[1739864486219,0.2090536,95676.0,95669.0,0.0337]
[1739864486421,0.2090536,95676.0,95670.0,0.0646]
[1739864489221,0.10306934,95680.0,95670.0,0.0646]
[1739864489423,0.2090566,95675.0,95670.0,0.0646]
[1739864490016,0.2090566,95675.0,95670.0,0.033]
[1739864490209,0.0313,95674.0,95670.0,0.033]
[1739864490822,0.2090586,95674.0,95670.0,0.033]
[1739864491022,0.2090611,95673.0,95663.0,0.066]
[1739864491222,0.2090611,95673.0,95664.0,0.03]
[1739864491721,0.3608,95671.0,95664.0,0.03]
[1739864491918,0.2090694,95669.0,95664.0,0.03]
[1739864492514,0.2090694,95669.0,95665.0,0.00210462]
[1739864493922,0.2415694,95669.0,95665.0,0.00410462]
[1739864497427,0.2090694,95669.0,95665.0,0.00410462]
[1739864500530,0.2090714,95668.0,95665.0,0.00410462]
[1739864501126,0.2090744,95667.0,95665.0,0.00410462]
[1739864502933,0.3608,95666.0,95665.0,0.00410462]
[1739864503123,0.2091068,95652.0,95650.0,0.0608]
[1739864503324,0.3917,95651.0,95650.0,0.0303]
[1739864504128,0.2091127,95649.0,95647.0,0.0305]
[1739864505233,0.2071169,95647.0,95646.0,0.0626]
[1739864505436,0.21840968,95647.0,95646.0,0.0626]
[1739864505729,0.21740968,95647.0,95645.0,0.00156827]
[1739864505935,0.21740968,95647.0,95646.0,0.0612]
[1739864506328,0.21740968,95647.0,95646.0,0.0632]
[1739864506538,0.21740968,95647.0,95646.0,0.0642]
[1739864506937,0.01129278,95647.0,95646.0,0.0622]
[1739864507139,0.60136941,95651.0,95646.0,0.0622]
[1739864507331,0.6008094,95651.0,95647.0,0.0316]
[1739864507532,0.00517871,95648.0,95647.0,0.0316]
[1739864507734,0.36597871,95648.0,95647.0,0.0316]
[1739864509242,0.36597871,95648.0,95646.0,0.001]
[1739864509431,0.0317,95647.0,95632.0,0.0968]
[1739864509630,0.2091416,95636.0,95632.0,0.0968]
[1739864510046,0.2081416,95636.0,95632.0,0.0968]
[1739864515644,0.2091439,95635.0,95632.0,0.0968]
[1739864516348,0.2091439,95635.0,95631.0,0.3608]
[1739864516846,0.2091439,95635.0,95632.0,0.0312]
[1739864517041,0.2091439,95635.0,95632.0,0.0942]
[1739864518542,0.3608,95639.0,95632.0,0.0942]
[1739864518850,0.10876,95638.0,95632.0,0.0942]
[1739864522757,0.3178984,95638.0,95632.0,0.0942]
[1739864522949,0.2091384,95638.0,95632.0,0.0942]
[1739864523550,0.2091413,95636.0,95632.0,0.0942]
[1739864530760,0.2091468,95634.0,95632.0,0.0942]
[1739864531160,0.0303,95633.0,95632.0,0.0942]
[1739864532866,0.3911,95633.0,95632.0,0.0942]
[1739864538464,0.3608,95633.0,95632.0,0.0942]
[1739864538664,0.46952,95633.0,95632.0,0.0942]
[1739864540261,0.47852,95633.0,95632.0,0.0942]
[1739864544261,0.47852,95633.0,95600.0,0.1]
[1739864544462,0.3608,95615.0,95600.0,0.1]
[1739864544670,0.0331,95614.0,95607.0,0.0929]
[1739864545270,0.01114389,95614.0,95607.0,0.0929]
[1739864545463,0.3608,95615.0,95607.0,0.0929]
[1739864546266,0.3608,95615.0,95607.0,0.0969]
[1739864547170,0.3608,95615.0,95607.0,0.0999]
[1739864547373,0.3608,95615.0,95607.0,0.0959]
[1739864547568,0.3608,95615.0,95607.0,0.0989]
[1739864548168,0.37226394,95615.0,95607.0,0.0989]
[1739864555672,0.2091963,95611.0,95607.0,0.0989]
[1739864555869,0.031,95610.0,95607.0,0.0989]
[1739864559479,0.0324,95614.0,95607.0,0.0989]
[1739864559671,0.01202395,95615.0,95607.0,0.0989]
[1739864559873,0.01146394,95615.0,95607.0,0.0989]
[1739864560074,0.06772575,95620.0,95607.0,0.0989]
[1739864560373,0.1354515,95620.0,95607.0,0.0989]
[1739864561877,0.14707634,95620.0,95607.0,0.0989]
[1739864562280,0.14707634,95620.0,95607.0,0.10741019]
[1739864562480,0.14707634,95620.0,95607.0,0.11041019]
[1739864564284,0.14707634,95620.0,95607.0,0.0989]
[1739864567788,0.14707634,95620.0,95607.0,0.3081034]
[1739864568096,0.01162484,95620.0,95617.0,0.3608]
[1739864568389,0.06772575,95627.0,95618.0,0.0956]
[1739864570185,0.06872575,95627.0,95618.0,0.0956]
[1739864570582,0.07981591,95627.0,95618.0,0.10721567]
[1739864570778,0.07981591,95627.0,95618.0,0.0956]
[1739864571890,0.07881591,95627.0,95618.0,0.0956]
[1739864572876,0.07981591,95627.0,95618.0,0.0956]
[1739864574084,0.07981591,95627.0,95618.0,0.10689711]
[1739864575282,0.07981591,95627.0,95618.0,0.0956]
[1739864584887,0.06772575,95628.0,95618.0,0.0956]
[1739864586094,0.00015682,95633.0,95628.0,0.2091564]
[1739864586403,0.00015682,95633.0,95629.0,0.0618]
[1739864586703,0.00015682,95633.0,95629.0,0.0926]
[1739864587698,0.01130639,95633.0,95629.0,0.0926]
[1739864587912,0.01530639,95633.0,95629.0,0.0926]
[1739864588804,0.01830639,95633.0,95629.0,0.0926]
[1739864589003,0.01830639,95633.0,95585.0,0.9126]
[1739864589004,0.01830639,95633.0,95600.0,0.1]
[1739864589197,0.2091725,95622.0,95615.0,0.0309]
[1739864589393,0.0649,95621.0,95615.0,0.0309]
[1739864589602,0.3608,95616.0,95615.0,0.0309]
[1739864589906,0.0649,95621.0,95615.0,0.0309]
[1739864590209,0.3608,95617.0,95615.0,0.0309]